[Event "Titled Tuesday Blitz September 28 2021"]
[White "Levitskiy, Andrey"]
[Black "Vovk, Orest"]
[WhiteFideId "14132885"]
[BlackFideId "14113490"]
[WhiteElo "2340"]
[BlackElo "2203"]
[Result "1-0"]
[Round "04"]
[TimeControl "180+1"]
[Date "2021.09.28"]
[WhiteClock "0:00:38"]
[BlackClock "0:00:04"]

1. e4 {[%clk 0:03:00]}  Nc6 {[%clk 0:02:59]} 2. Nf3 {[%clk 0:03:00]}  d5 {[%clk 0:02:59]} 3. exd5 {[%clk 0:02:58]}  Qxd5 {[%clk 0:03:00]} 4. Nc3 {[%clk 0:02:59]}  Qa5 {[%clk 0:03:00]} 5. Bb5 {[%clk 0:02:59]}  Bd7 {[%clk 0:03:00]} 6. d4 {[%clk 0:02:49]}  a6 {[%clk 0:02:59]} 7. Bc4 {[%clk 0:02:45]}  Qh5 {[%clk 0:02:57]} 8. d5 {[%clk 0:02:34]}  Ne5 {[%clk 0:02:54]} 9. Be2 {[%clk 0:02:34]}  Nxf3+ {[%clk 0:02:50]} 10. Bxf3 {[%clk 0:02:35]}  Qe5+ {[%clk 0:02:50]} 11. Be3 {[%clk 0:02:34]}  O-O-O {[%clk 0:02:44]} 12. O-O {[%clk 0:02:32]}  e6 {[%clk 0:02:36]} 13. dxe6 {[%clk 0:02:22]}  Bc6 {[%clk 0:02:13]} 14. Qe2 {[%clk 0:01:55]}  Qxe6 {[%clk 0:01:57]} 15. Rad1 {[%clk 0:01:43]}  Rxd1 {[%clk 0:01:49]} 16. Rxd1 {[%clk 0:01:44]}  Bxf3 {[%clk 0:01:46]} 17. Qxf3 {[%clk 0:01:44]}  Bd6 {[%clk 0:01:45]} 18. Ne4 {[%clk 0:01:39]}  Nf6 {[%clk 0:01:30]} 19. Nxd6+ {[%clk 0:01:30]}  cxd6 {[%clk 0:01:29]} 20. Qg3 {[%clk 0:01:23]}  d5 {[%clk 0:01:19]} 21. Rd3 {[%clk 0:01:15]}  Ne8 {[%clk 0:00:11]} 22. Rc3+ {[%clk 0:01:08]}  Kd7 {[%clk 0:00:11]} 23. Qb8 {[%clk 0:01:08]}  Ke7 {[%clk 0:00:09]} 24. Bc5+ {[%clk 0:00:55]}  Kf6 {[%clk 0:00:04]} 25. Rf3+ {[%clk 0:00:48]}  Kg6 {[%clk 0:00:04]} 26. Qg3+ {[%clk 0:00:48]}  Kh6 {[%clk 0:00:04]} 27. Be3+ {[%clk 0:00:38]} 1-0


[Site "https://www.chess.com"]

[Event "Titled Tuesday Blitz September 28 2021"]
[White "Maksimenko, Viktor"]
[Black "Mekhitarian, Krikor Sevag"]
[WhiteFideId "13710478"]
[BlackFideId "2107660"]
[WhiteElo "2269"]
[BlackElo "2598"]
[Result "0-1"]
[Round "04"]
[TimeControl "180+1"]
[Date "2021.09.28"]
[WhiteClock "0:00:00"]
[BlackClock "0:00:08"]

1. d4 {[%clk 0:03:00]}  Nf6 {[%clk 0:02:59]} 2. c4 {[%clk 0:03:01]}  g6 {[%clk 0:02:58]} 3. Nc3 {[%clk 0:03:01]}  d5 {[%clk 0:02:59]} 4. cxd5 {[%clk 0:03:02]}  Nxd5 {[%clk 0:03:00]} 5. e4 {[%clk 0:03:02]}  Nxc3 {[%clk 0:03:00]} 6. bxc3 {[%clk 0:03:03]}  Bg7 {[%clk 0:03:00]} 7. Bc4 {[%clk 0:03:03]}  c5 {[%clk 0:03:01]} 8. Ne2 {[%clk 0:03:04]}  O-O {[%clk 0:03:01]} 9. O-O {[%clk 0:03:04]}  Nc6 {[%clk 0:03:02]} 10. Be3 {[%clk 0:03:04]}  Bg4 {[%clk 0:03:02]} 11. f3 {[%clk 0:03:05]}  Bd7 {[%clk 0:03:03]} 12. Rb1 {[%clk 0:02:40]}  Qc7 {[%clk 0:03:02]} 13. Qd2 {[%clk 0:02:34]}  Rad8 {[%clk 0:02:57]} 14. Rfc1 {[%clk 0:02:28]}  Bc8 {[%clk 0:02:56]} 15. Bg5 {[%clk 0:02:28]}  Na5 {[%clk 0:02:54]} 16. Bd3 {[%clk 0:02:28]}  b6 {[%clk 0:02:46]} 17. d5 {[%clk 0:02:16]}  c4 {[%clk 0:02:46]} 18. Bc2 {[%clk 0:02:16]}  f6 {[%clk 0:02:44]} 19. Bf4 {[%clk 0:02:07]}  e5 {[%clk 0:02:42]} 20. Be3 {[%clk 0:02:04]}  Rf7 {[%clk 0:02:34]} 21. f4 {[%clk 0:01:55]}  Bf8 {[%clk 0:02:26]} 22. fxe5 {[%clk 0:01:50]}  fxe5 {[%clk 0:02:27]} 23. Rf1 {[%clk 0:01:49]}  Nb7 {[%clk 0:02:21]} 24. Ng3 {[%clk 0:01:31]}  Bc5 {[%clk 0:02:17]} 25. Rxf7 {[%clk 0:01:28]}  Qxf7 {[%clk 0:02:11]} 26. Rf1 {[%clk 0:01:29]}  Qe7 {[%clk 0:02:10]} 27. Bxc5 {[%clk 0:01:15]}  Nxc5 {[%clk 0:01:58]} 28. Qe2 {[%clk 0:01:07]}  Rf8 {[%clk 0:00:39]} 29. Qxc4 {[%clk 0:01:05]}  Ba6 {[%clk 0:00:38]} 30. d6+ {[%clk 0:00:40]}  Bxc4 {[%clk 0:00:35]} 31. dxe7 {[%clk 0:00:40]}  Re8 {[%clk 0:00:34]} 32. Rd1 {[%clk 0:00:33]}  Rxe7 {[%clk 0:00:34]} 33. a3 {[%clk 0:00:28]}  Rd7 {[%clk 0:00:28]} 34. Rxd7 {[%clk 0:00:28]}  Nxd7 {[%clk 0:00:29]} 35. Kf2 {[%clk 0:00:29]}  Kf8 {[%clk 0:00:29]} 36. Ke3 {[%clk 0:00:29]}  Ke7 {[%clk 0:00:29]} 37. Bd3 {[%clk 0:00:25]}  Bxd3 {[%clk 0:00:20]} 38. Kxd3 {[%clk 0:00:26]}  b5 {[%clk 0:00:20]} 39. Nf1 {[%clk 0:00:25]}  Nc5+ {[%clk 0:00:20]} 40. Ke3 {[%clk 0:00:25]}  Kd6 {[%clk 0:00:20]} 41. Nd2 {[%clk 0:00:23]}  a5 {[%clk 0:00:20]} 42. Nf3 {[%clk 0:00:19]}  Na4 {[%clk 0:00:21]} 43. Kd3 {[%clk 0:00:18]}  Nb2+ {[%clk 0:00:21]} 44. Kc2 {[%clk 0:00:19]}  Nc4 {[%clk 0:00:22]} 45. Kd3 {[%clk 0:00:19]}  Nxa3 {[%clk 0:00:22]} 46. Ng5 {[%clk 0:00:20]}  h5 {[%clk 0:00:21]} 47. Nf7+ {[%clk 0:00:18]}  Ke6 {[%clk 0:00:22]} 48. Nd8+ {[%clk 0:00:18]}  Kf6 {[%clk 0:00:21]} 49. Nc6 {[%clk 0:00:18]}  Nc4 {[%clk 0:00:20]} 50. Na7 {[%clk 0:00:18]}  Nd6 {[%clk 0:00:18]} 51. h4 {[%clk 0:00:14]}  a4 {[%clk 0:00:17]} 52. Nc6 {[%clk 0:00:14]}  Ke6 {[%clk 0:00:13]} 53. Nb4 {[%clk 0:00:13]}  Nc4 {[%clk 0:00:12]} 54. Nd5 {[%clk 0:00:14]}  Kd6 {[%clk 0:00:12]} 55. Kc2 {[%clk 0:00:11]}  Kc5 {[%clk 0:00:12]} 56. Ne7 {[%clk 0:00:00]}  Ne3+ {[%clk 0:00:08]} 0-1


[Site "https://www.chess.com"]

[Event "Titled Tuesday Blitz September 28 2021"]
[White "Manafov, Vugar"]
[Black "Sieciechowicz, Marcin"]
[WhiteFideId "13410814"]
[BlackFideId "1130170"]
[WhiteElo "2274"]
[BlackElo "2318"]
[Result "1-0"]
[Round "04"]
[TimeControl "180+1"]
[Date "2021.09.28"]
[WhiteClock "0:00:19"]
[BlackClock "0:00:02"]

1. d4 {[%clk 0:03:00]}  Nf6 {[%clk 0:02:59]} 2. c4 {[%clk 0:03:00]}  g6 {[%clk 0:03:00]} 3. Nc3 {[%clk 0:03:00]}  d5 {[%clk 0:03:00]} 4. cxd5 {[%clk 0:03:00]}  Nxd5 {[%clk 0:03:01]} 5. e4 {[%clk 0:03:00]}  Nxc3 {[%clk 0:03:01]} 6. bxc3 {[%clk 0:03:01]}  Bg7 {[%clk 0:03:02]} 7. Bc4 {[%clk 0:03:01]}  c5 {[%clk 0:03:02]} 8. Ne2 {[%clk 0:03:02]}  Nc6 {[%clk 0:03:02]} 9. Be3 {[%clk 0:03:01]}  O-O {[%clk 0:03:02]} 10. O-O {[%clk 0:03:00]}  Qc7 {[%clk 0:03:02]} 11. dxc5 {[%clk 0:02:52]}  Ne5 {[%clk 0:02:49]} 12. Bb3 {[%clk 0:02:45]}  Ng4 {[%clk 0:02:49]} 13. Bf4 {[%clk 0:02:39]}  Qxc5 {[%clk 0:02:32]} 14. Rb1 {[%clk 0:02:19]}  e5 {[%clk 0:02:10]} 15. Bc1 {[%clk 0:02:14]}  Nf6 {[%clk 0:01:54]} 16. Be3 {[%clk 0:01:53]}  Qc7 {[%clk 0:01:52]} 17. f3 {[%clk 0:01:54]}  b5 {[%clk 0:01:26]} 18. a4 {[%clk 0:01:41]}  bxa4 {[%clk 0:01:10]} 19. Bxa4 {[%clk 0:01:42]}  Be6 {[%clk 0:01:09]} 20. Bb5 {[%clk 0:01:40]}  a6 {[%clk 0:01:00]} 21. Bd3 {[%clk 0:01:35]}  Nd7 {[%clk 0:00:44]} 22. Nc1 {[%clk 0:01:14]}  Nc5 {[%clk 0:00:44]} 23. Be2 {[%clk 0:01:12]}  f5 {[%clk 0:00:34]} 24. Nd3 {[%clk 0:01:11]}  Nxd3 {[%clk 0:00:30]} 25. Bxd3 {[%clk 0:01:11]}  Qxc3 {[%clk 0:00:26]} 26. Rc1 {[%clk 0:01:06]}  Qa5 {[%clk 0:00:23]} 27. Rc5 {[%clk 0:01:05]}  Qd8 {[%clk 0:00:19]} 28. Qe2 {[%clk 0:01:05]}  a5 {[%clk 0:00:18]} 29. Rd1 {[%clk 0:01:03]}  Qe7 {[%clk 0:00:18]} 30. Rdc1 {[%clk 0:00:56]}  Rfc8 {[%clk 0:00:15]} 31. Rxc8+ {[%clk 0:00:48]}  Rxc8 {[%clk 0:00:16]} 32. Rxc8+ {[%clk 0:00:48]}  Bxc8 {[%clk 0:00:16]} 33. Qa2+ {[%clk 0:00:48]}  Be6 {[%clk 0:00:15]} 34. Qxa5 {[%clk 0:00:49]}  h5 {[%clk 0:00:13]} 35. Qa8+ {[%clk 0:00:43]}  Kh7 {[%clk 0:00:13]} 36. Qc6 {[%clk 0:00:44]}  f4 {[%clk 0:00:10]} 37. Bf2 {[%clk 0:00:43]}  Qf6 {[%clk 0:00:10]} 38. Bb6 {[%clk 0:00:35]}  g5 {[%clk 0:00:09]} 39. Qd6 {[%clk 0:00:35]}  g4 {[%clk 0:00:08]} 40. Bd8 {[%clk 0:00:34]}  Qg6 {[%clk 0:00:08]} 41. Be2 {[%clk 0:00:34]}  gxf3 {[%clk 0:00:06]} 42. Bxf3 {[%clk 0:00:31]}  Bg4 {[%clk 0:00:06]} 43. Qd1 {[%clk 0:00:27]}  Bf6 {[%clk 0:00:04]} 44. Bxf6 {[%clk 0:00:24]}  Qxf6 {[%clk 0:00:03]} 45. Bxg4 {[%clk 0:00:24]}  hxg4 {[%clk 0:00:03]} 46. Qxg4 {[%clk 0:00:24]}  Qb6+ {[%clk 0:00:03]} 47. Kf1 {[%clk 0:00:24]}  Qb1+ {[%clk 0:00:02]} 48. Kf2 {[%clk 0:00:25]}  Qxe4 {[%clk 0:00:03]} 49. Qf3 {[%clk 0:00:23]}  Qd4+ {[%clk 0:00:03]} 50. Ke2 {[%clk 0:00:22]}  Qb2+ {[%clk 0:00:02]} 51. Kd3 {[%clk 0:00:21]}  Qd4+ {[%clk 0:00:02]} 52. Ke2 {[%clk 0:00:22]}  Qc4+ {[%clk 0:00:03]} 53. Qd3+ {[%clk 0:00:19]}  Qxd3+ {[%clk 0:00:01]} 54. Kxd3 {[%clk 0:00:20]}  Kg6 {[%clk 0:00:02]} 55. Ke4 {[%clk 0:00:21]}  Kf6 {[%clk 0:00:02]} 56. h4 {[%clk 0:00:20]}  Ke6 {[%clk 0:00:02]} 57. h5 {[%clk 0:00:20]}  Kf6 {[%clk 0:00:01]} 58. h6 {[%clk 0:00:20]}  Kg6 {[%clk 0:00:01]} 59. Kxe5 {[%clk 0:00:19]}  Kxh6 {[%clk 0:00:02]} 60. Kxf4 {[%clk 0:00:20]}  Kh5 {[%clk 0:00:02]} 61. Kf5 {[%clk 0:00:19]}  Kh4 {[%clk 0:00:02]} 62. g4 {[%clk 0:00:19]} 1-0


[Site "https://www.chess.com"]

[Event "Titled Tuesday Blitz September 28 2021"]
[White "Maze, Sebastien"]
[Black "Wagner, Dinara"]
[WhiteFideId "613762"]
[BlackFideId "24157570"]
[WhiteElo "2462"]
[BlackElo "2260"]
[Result "1/2-1/2"]
[Round "04"]
[TimeControl "180+1"]
[Date "2021.09.28"]
[WhiteClock "0:00:04"]
[BlackClock "0:00:22"]

1. e4 {[%clk 0:03:00]}  c5 {[%clk 0:02:57]} 2. Nf3 {[%clk 0:02:59]}  d6 {[%clk 0:02:55]} 3. Bb5+ {[%clk 0:02:56]}  Bd7 {[%clk 0:02:55]} 4. Bxd7+ {[%clk 0:02:52]}  Qxd7 {[%clk 0:02:56]} 5. O-O {[%clk 0:02:53]}  Nf6 {[%clk 0:02:56]} 6. Re1 {[%clk 0:02:52]}  Nc6 {[%clk 0:02:54]} 7. c3 {[%clk 0:02:52]}  e6 {[%clk 0:02:54]} 8. d4 {[%clk 0:02:52]}  cxd4 {[%clk 0:02:52]} 9. cxd4 {[%clk 0:02:53]}  d5 {[%clk 0:02:52]} 10. e5 {[%clk 0:02:53]}  Ne4 {[%clk 0:02:53]} 11. Nbd2 {[%clk 0:02:54]}  Nxd2 {[%clk 0:02:52]} 12. Bxd2 {[%clk 0:02:54]}  Bb4 {[%clk 0:02:52]} 13. Bxb4 {[%clk 0:02:47]}  Nxb4 {[%clk 0:02:52]} 14. a3 {[%clk 0:02:47]}  Nc6 {[%clk 0:02:52]} 15. Qd3 {[%clk 0:02:47]}  h6 {[%clk 0:02:47]} 16. Nh4 {[%clk 0:02:41]}  O-O-O {[%clk 0:02:24]} 17. Rac1 {[%clk 0:02:36]}  Kb8 {[%clk 0:02:23]} 18. Rc5 {[%clk 0:02:18]}  Rc8 {[%clk 0:02:22]} 19. Rec1 {[%clk 0:02:17]}  Ne7 {[%clk 0:02:22]} 20. Nf3 {[%clk 0:02:07]}  b6 {[%clk 0:02:18]} 21. R5c3 {[%clk 0:01:57]}  g6 {[%clk 0:02:18]} 22. Qd2 {[%clk 0:01:51]}  g5 {[%clk 0:02:11]} 23. h4 {[%clk 0:01:49]}  g4 {[%clk 0:02:07]} 24. Nh2 {[%clk 0:01:49]}  h5 {[%clk 0:02:00]} 25. Nf1 {[%clk 0:01:49]}  Nf5 {[%clk 0:01:58]} 26. Ng3 {[%clk 0:01:43]}  Nxh4 {[%clk 0:01:46]} 27. Rxc8+ {[%clk 0:01:38]}  Rxc8 {[%clk 0:01:45]} 28. Nxh5 {[%clk 0:01:38]}  Rxc1+ {[%clk 0:01:16]} 29. Qxc1 {[%clk 0:01:38]}  Nf5 {[%clk 0:01:17]} 30. Nf6 {[%clk 0:01:07]}  Qa4 {[%clk 0:01:02]} 31. Nxg4 {[%clk 0:00:29]}  Qxd4 {[%clk 0:01:01]} 32. Qg5 {[%clk 0:00:23]}  Kb7 {[%clk 0:00:57]} 33. Ne3 {[%clk 0:00:20]}  Qxe5 {[%clk 0:00:45]} 34. Nxf5 {[%clk 0:00:19]}  Qxf5 {[%clk 0:00:46]} 35. Qd2 {[%clk 0:00:15]}  Kc6 {[%clk 0:00:42]} 36. f4 {[%clk 0:00:14]}  a5 {[%clk 0:00:42]} 37. Qc3+ {[%clk 0:00:13]}  Kd6 {[%clk 0:00:41]} 38. Qd4 {[%clk 0:00:11]}  Kc6 {[%clk 0:00:37]} 39. Qc3+ {[%clk 0:00:11]}  Kb7 {[%clk 0:00:37]} 40. Kf2 {[%clk 0:00:08]}  Qxf4+ {[%clk 0:00:37]} 41. Kg1 {[%clk 0:00:07]}  Qf5 {[%clk 0:00:35]} 42. Qd4 {[%clk 0:00:06]}  Qe4 {[%clk 0:00:34]} 43. Qf6 {[%clk 0:00:06]}  Qf5 {[%clk 0:00:32]} 44. Qd4 {[%clk 0:00:03]}  f6 {[%clk 0:00:31]} 45. b4 {[%clk 0:00:02]}  axb4 {[%clk 0:00:30]} 46. axb4 {[%clk 0:00:02]}  Qe5 {[%clk 0:00:31]} 47. Qf2 {[%clk 0:00:02]}  Qa1+ {[%clk 0:00:30]} 48. Kh2 {[%clk 0:00:02]}  Qe5+ {[%clk 0:00:30]} 49. g3 {[%clk 0:00:02]}  d4 {[%clk 0:00:30]} 50. Qc2 {[%clk 0:00:02]}  Qe3 {[%clk 0:00:29]} 51. b5 {[%clk 0:00:02]}  Qf3 {[%clk 0:00:25]} 52. Qh7+ {[%clk 0:00:01]}  Kb8 {[%clk 0:00:24]} 53. Qg8+ {[%clk 0:00:02]}  Kc7 {[%clk 0:00:25]} 54. Qxe6 {[%clk 0:00:02]}  d3 {[%clk 0:00:23]} 55. Qe7+ {[%clk 0:00:02]}  Kc8 {[%clk 0:00:23]} 56. Qe8+ {[%clk 0:00:03]}  Kb7 {[%clk 0:00:24]} 57. Qd7+ {[%clk 0:00:03]}  Kb8 {[%clk 0:00:24]} 58. Qd8+ {[%clk 0:00:04]}  Ka7 {[%clk 0:00:24]} 59. Qd7+ {[%clk 0:00:03]}  Kb8 {[%clk 0:00:21]} 60. Qd8+ {[%clk 0:00:03]}  Kb7 {[%clk 0:00:22]} 61. Qd7+ {[%clk 0:00:04]}  Kb8 {[%clk 0:00:22]} 1/2-1/2


[Site "https://www.chess.com"]

[Event "Titled Tuesday Blitz September 28 2021"]
[White "Megagigahiper3345"]
[Black "Bologan, Victor"]
[BlackFideId "13900048"]
[WhiteElo "2531"]
[BlackElo "2511"]
[Result "0-1"]
[Round "04"]
[TimeControl "180+1"]
[Date "2021.09.28"]
[WhiteClock "0:00:39"]
[BlackClock "0:01:05"]

1. d4 {[%clk 0:03:00]}  Nf6 {[%clk 0:02:57]} 2. c4 {[%clk 0:03:00]}  e6 {[%clk 0:02:57]} 3. Nc3 {[%clk 0:02:51]}  Bb4 {[%clk 0:02:56]} 4. g3 {[%clk 0:02:50]}  O-O {[%clk 0:02:54]} 5. Bg2 {[%clk 0:02:47]}  Nc6 {[%clk 0:02:46]} 6. d5 {[%clk 0:02:43]}  Bxc3+ {[%clk 0:02:42]} 7. bxc3 {[%clk 0:02:37]}  Na5 {[%clk 0:02:42]} 8. Qd3 {[%clk 0:02:35]}  d6 {[%clk 0:02:40]} 9. Nh3 {[%clk 0:02:29]}  b6 {[%clk 0:02:35]} 10. dxe6 {[%clk 0:02:27]}  Bxe6 {[%clk 0:02:34]} 11. Nf4 {[%clk 0:02:25]}  Bxc4 {[%clk 0:02:32]} 12. Qc2 {[%clk 0:02:24]}  Rb8 {[%clk 0:02:31]} 13. O-O {[%clk 0:02:21]}  Re8 {[%clk 0:02:26]} 14. Re1 {[%clk 0:02:13]}  d5 {[%clk 0:02:22]} 15. Nd3 {[%clk 0:02:02]}  Ne4 {[%clk 0:02:17]} 16. Be3 {[%clk 0:02:01]}  c5 {[%clk 0:02:03]} 17. Rad1 {[%clk 0:01:57]}  Qf6 {[%clk 0:02:01]} 18. Nf4 {[%clk 0:01:52]}  Nxc3 {[%clk 0:01:51]} 19. Nxd5 {[%clk 0:01:51]}  Nxd5 {[%clk 0:01:45]} 20. Bxd5 {[%clk 0:01:50]}  Bxd5 {[%clk 0:01:45]} 21. Rxd5 {[%clk 0:01:51]}  h6 {[%clk 0:01:41]} 22. Red1 {[%clk 0:01:48]}  Rbd8 {[%clk 0:01:40]} 23. Qd3 {[%clk 0:01:43]}  Nc6 {[%clk 0:01:34]} 24. Qb5 {[%clk 0:01:25]}  Qe6 {[%clk 0:01:19]} 25. R5d2 {[%clk 0:00:58]}  Rxd2 {[%clk 0:01:15]} 26. Rxd2 {[%clk 0:00:57]}  Rd8 {[%clk 0:01:15]} 27. Rxd8+ {[%clk 0:00:54]}  Nxd8 {[%clk 0:01:14]} 28. a4 {[%clk 0:00:48]}  Nc6 {[%clk 0:01:14]} 29. a5 {[%clk 0:00:39]}  Nxa5 {[%clk 0:01:11]} 30. Bxc5 {[%clk 0:00:39]}  Qc6 {[%clk 0:01:05]} 0-1


[Site "https://www.chess.com"]

[Event "Titled Tuesday Blitz September 28 2021"]
[White "Mgeladze, Tamaz"]
[Black "Timofeev, Artyom"]
[WhiteFideId "13601202"]
[BlackFideId "4140419"]
[WhiteElo "2258"]
[BlackElo "2591"]
[Result "0-1"]
[Round "04"]
[TimeControl "180+1"]
[Date "2021.09.28"]
[WhiteClock "0:00:05"]
[BlackClock "0:00:28"]

1. c4 {[%clk 0:02:21]}  c5 {[%clk 0:02:58]} 2. g3 {[%clk 0:02:21]}  g6 {[%clk 0:02:57]} 3. Bg2 {[%clk 0:02:22]}  Bg7 {[%clk 0:02:58]} 4. Nc3 {[%clk 0:02:23]}  Nc6 {[%clk 0:02:58]} 5. Nf3 {[%clk 0:02:23]}  e6 {[%clk 0:02:56]} 6. d4 {[%clk 0:02:24]}  cxd4 {[%clk 0:02:48]} 7. Nb5 {[%clk 0:02:24]}  d5 {[%clk 0:02:48]} 8. cxd5 {[%clk 0:02:24]}  exd5 {[%clk 0:02:47]} 9. Nbxd4 {[%clk 0:02:23]}  Nge7 {[%clk 0:02:48]} 10. O-O {[%clk 0:02:23]}  O-O {[%clk 0:02:47]} 11. b3 {[%clk 0:02:24]}  Bg4 {[%clk 0:02:44]} 12. Bb2 {[%clk 0:02:23]}  Qb6 {[%clk 0:02:36]} 13. Nxc6 {[%clk 0:02:22]}  bxc6 {[%clk 0:02:36]} 14. Bxg7 {[%clk 0:02:22]}  Kxg7 {[%clk 0:02:36]} 15. Rc1 {[%clk 0:02:11]}  c5 {[%clk 0:02:33]} 16. Qc2 {[%clk 0:02:06]}  Rac8 {[%clk 0:02:29]} 17. Rfd1 {[%clk 0:02:02]}  d4 {[%clk 0:02:25]} 18. Ne5 {[%clk 0:01:56]}  Bf5 {[%clk 0:02:24]} 19. Qd2 {[%clk 0:01:46]}  Rfd8 {[%clk 0:02:11]} 20. Nc4 {[%clk 0:01:44]}  Qe6 {[%clk 0:02:10]} 21. h4 {[%clk 0:01:42]}  Be4 {[%clk 0:02:03]} 22. Bxe4 {[%clk 0:01:38]}  Qxe4 {[%clk 0:02:03]} 23. Qd3 {[%clk 0:01:39]}  Qe6 {[%clk 0:02:02]} 24. e3 {[%clk 0:01:35]}  Nf5 {[%clk 0:01:59]} 25. exd4 {[%clk 0:01:27]}  Nxd4 {[%clk 0:01:58]} 26. Kg2 {[%clk 0:01:13]}  Qc6+ {[%clk 0:01:57]} 27. f3 {[%clk 0:01:12]}  h6 {[%clk 0:01:25]} 28. Qe4 {[%clk 0:01:09]}  Qf6 {[%clk 0:01:22]} 29. Qe5 {[%clk 0:01:07]}  Re8 {[%clk 0:01:19]} 30. Qxf6+ {[%clk 0:01:07]}  Kxf6 {[%clk 0:01:19]} 31. Re1 {[%clk 0:01:06]}  Re6 {[%clk 0:01:17]} 32. Rxe6+ {[%clk 0:01:04]}  Nxe6 {[%clk 0:01:16]} 33. Rd1 {[%clk 0:00:58]}  Rd8 {[%clk 0:01:12]} 34. Rxd8 {[%clk 0:00:57]}  Nxd8 {[%clk 0:01:12]} 35. Kf2 {[%clk 0:00:58]}  Nc6 {[%clk 0:01:12]} 36. Ke3 {[%clk 0:00:57]}  Nb4 {[%clk 0:01:13]} 37. a4 {[%clk 0:00:56]}  Nc2+ {[%clk 0:01:11]} 38. Ke4 {[%clk 0:00:57]}  Ke6 {[%clk 0:01:11]} 39. g4 {[%clk 0:00:54]}  Nd4 {[%clk 0:01:07]} 40. Nd2 {[%clk 0:00:46]}  f5+ {[%clk 0:01:05]} 41. gxf5+ {[%clk 0:00:45]}  gxf5+ {[%clk 0:01:06]} 42. Kd3 {[%clk 0:00:46]}  Kd5 {[%clk 0:01:06]} 43. h5 {[%clk 0:00:42]}  Ne6 {[%clk 0:01:05]} 44. Ke3 {[%clk 0:00:29]}  Ng7 {[%clk 0:01:05]} 45. a5 {[%clk 0:00:20]}  Nxh5 {[%clk 0:01:04]} 46. Nc4 {[%clk 0:00:20]}  f4+ {[%clk 0:01:02]} 47. Kd3 {[%clk 0:00:16]}  Nf6 {[%clk 0:01:02]} 48. a6 {[%clk 0:00:17]}  Nd7 {[%clk 0:00:57]} 49. Nd2 {[%clk 0:00:13]}  Nb8 {[%clk 0:00:52]} 50. Ne4 {[%clk 0:00:13]}  Nxa6 {[%clk 0:00:52]} 51. Nf6+ {[%clk 0:00:13]}  Ke6 {[%clk 0:00:51]} 52. Ne4 {[%clk 0:00:10]}  h5 {[%clk 0:00:49]} 53. Kc4 {[%clk 0:00:10]}  Ke5 {[%clk 0:00:39]} 54. Kb5 {[%clk 0:00:08]}  Nc7+ {[%clk 0:00:39]} 55. Kxc5 {[%clk 0:00:09]}  Ne6+ {[%clk 0:00:40]} 56. Kc6 {[%clk 0:00:06]}  Nd4+ {[%clk 0:00:40]} 57. Kb7 {[%clk 0:00:04]}  Nxf3 {[%clk 0:00:40]} 58. Nf2 {[%clk 0:00:03]}  Nd4 {[%clk 0:00:39]} 59. b4 {[%clk 0:00:03]}  f3 {[%clk 0:00:33]} 60. Ka6 {[%clk 0:00:03]}  Kf4 {[%clk 0:00:33]} 61. b5 {[%clk 0:00:03]}  Kg3 {[%clk 0:00:29]} 62. Nd3 {[%clk 0:00:03]}  f2 {[%clk 0:00:28]} 63. Nxf2 {[%clk 0:00:03]}  Kxf2 {[%clk 0:00:28]} 64. b6 {[%clk 0:00:04]}  axb6 {[%clk 0:00:28]} 65. Kxb6 {[%clk 0:00:05]}  h4 {[%clk 0:00:28]} 0-1


[Site "https://www.chess.com"]

[Event "Titled Tuesday Blitz September 28 2021"]
[White "Nakamura, Hikaru"]
[Black "Pichot, Alan"]
[WhiteFideId "2016192"]
[BlackFideId "110973"]
[WhiteElo "2884"]
[BlackElo "2600"]
[Result "1-0"]
[Round "04"]
[TimeControl "180+1"]
[Date "2021.09.28"]
[WhiteClock "0:00:26"]
[BlackClock "0:00:11"]

1. Nf3 {[%clk 0:03:00]}  Nf6 {[%clk 0:02:58]} 2. b3 {[%clk 0:03:00]}  d5 {[%clk 0:02:59]} 3. e3 {[%clk 0:03:00]}  Bf5 {[%clk 0:02:59]} 4. Bb2 {[%clk 0:03:00]}  e6 {[%clk 0:02:59]} 5. Nh4 {[%clk 0:03:01]}  Bg6 {[%clk 0:02:58]} 6. Nxg6 {[%clk 0:03:01]}  hxg6 {[%clk 0:02:59]} 7. g3 {[%clk 0:03:02]}  a5 {[%clk 0:02:58]} 8. a3 {[%clk 0:03:02]}  a4 {[%clk 0:02:57]} 9. b4 {[%clk 0:03:02]}  c5 {[%clk 0:02:57]} 10. bxc5 {[%clk 0:03:03]}  Bxc5 {[%clk 0:02:58]} 11. d4 {[%clk 0:03:04]}  Bd6 {[%clk 0:02:54]} 12. Nd2 {[%clk 0:03:03]}  Nc6 {[%clk 0:02:42]} 13. c4 {[%clk 0:03:00]}  Qa5 {[%clk 0:02:32]} 14. Bd3 {[%clk 0:02:40]}  dxc4 {[%clk 0:02:22]} 15. Bxc4 {[%clk 0:02:40]}  Rc8 {[%clk 0:02:23]} 16. O-O {[%clk 0:02:35]}  g5 {[%clk 0:01:59]} 17. Be2 {[%clk 0:02:28]}  Be7 {[%clk 0:01:48]} 18. Nc4 {[%clk 0:02:22]}  Qf5 {[%clk 0:01:48]} 19. f3 {[%clk 0:02:17]}  Qh3 {[%clk 0:01:32]} 20. Rf2 {[%clk 0:02:17]}  g4 {[%clk 0:01:33]} 21. Qxa4 {[%clk 0:01:43]}  gxf3 {[%clk 0:01:27]} 22. Bxf3 {[%clk 0:01:44]}  Ng4 {[%clk 0:01:27]} 23. Bxg4 {[%clk 0:01:42]}  Qxg4 {[%clk 0:01:28]} 24. Qd1 {[%clk 0:01:32]}  Qg5 {[%clk 0:01:24]} 25. Qf3 {[%clk 0:01:29]}  O-O {[%clk 0:01:22]} 26. Nd2 {[%clk 0:01:24]}  Qg6 {[%clk 0:01:16]} 27. Qe4 {[%clk 0:01:21]}  Qxe4 {[%clk 0:01:11]} 28. Nxe4 {[%clk 0:01:22]}  Na5 {[%clk 0:01:12]} 29. a4 {[%clk 0:01:08]}  Nc4 {[%clk 0:01:08]} 30. Bc1 {[%clk 0:01:06]}  e5 {[%clk 0:01:08]} 31. Rb1 {[%clk 0:01:01]}  Rc7 {[%clk 0:01:05]} 32. Rc2 {[%clk 0:00:58]}  Rd8 {[%clk 0:00:48]} 33. Nd2 {[%clk 0:00:32]}  Nxd2 {[%clk 0:00:37]} 34. Rxc7 {[%clk 0:00:33]}  Nxb1 {[%clk 0:00:38]} 35. Rxe7 {[%clk 0:00:33]}  exd4 {[%clk 0:00:38]} 36. Rxb7 {[%clk 0:00:34]}  Nc3 {[%clk 0:00:39]} 37. Bb2 {[%clk 0:00:35]}  Ne2+ {[%clk 0:00:18]} 38. Kf2 {[%clk 0:00:35]}  d3 {[%clk 0:00:19]} 39. Ke1 {[%clk 0:00:35]}  Ng1 {[%clk 0:00:17]} 40. a5 {[%clk 0:00:31]}  d2+ {[%clk 0:00:16]} 41. Kd1 {[%clk 0:00:31]}  Nf3 {[%clk 0:00:14]} 42. a6 {[%clk 0:00:30]}  Re8 {[%clk 0:00:10]} 43. a7 {[%clk 0:00:25]}  Rxe3 {[%clk 0:00:10]} 44. a8=Q+ {[%clk 0:00:26]}  Kh7 {[%clk 0:00:11]} 45. Rd7 {[%clk 0:00:26]} 1-0


[Site "https://www.chess.com"]